lending/lending_fUSD_20250819
["ID","MTS","AMOUNT","RATE_DAILY","PERIOD"]
[380286968,1755634234896,-44361.42524425,0.00013585,2]
[380286969,1755634234908,-10192.24293135,0.00013585,2]
[380286970,1755634234919,-25187.66677418,0.00013585,2]
[380286971,1755634234931,-1705.62559419,0.00013585,2]
[380286972,1755634234943,-1694.05595021,0.00013585,2]
[380287014,1755634238280,-5136.2537758,0.00013585,2]
[380287016,1755634238290,-157.14050981,0.00013589,2]
[380287018,1755634238299,-2000.0,0.00013589,2]
[380287020,1755634238309,-160.96084058,0.00013599,2]
[380287021,1755634238318,-500.0,0.00013607,2]
[380287022,1755634238327,-849.0,0.00013607,2]
[380287023,1755634238337,-555.0,0.00013607,2]
[380287024,1755634238346,-300.0,0.00013607,2]
[380287025,1755634238355,-500.0,0.00013607,2]
[380287026,1755634238364,-175.15,0.00013659,2]
[380287027,1755634238374,-150.0,0.00013685,2]
[380287029,1755634238383,-800.63576184,0.00013685,2]
[380287030,1755634238392,-1020.41812784,0.00013686,2]
[380287032,1755634238402,-1240.20049383,0.00013686,2]
[380287034,1755634238411,-1459.98285983,0.00013687,2]
[380287036,1755634238420,-1679.76522582,0.00013687,2]
[380287038,1755634238429,-1899.54759182,0.00013687,2]
[380287040,1755634238439,-2119.32995781,0.00013688,2]
[380287042,1755634238448,-2339.11232381,0.00013688,2]
[380287044,1755634238458,-2558.89468981,0.00013689,2]
[380287046,1755634238467,-1120.48565594,0.00013698,3]
[380287048,1755634238476,-500.0,0.00013699,2]
[380287050,1755634238486,-6692.65,0.00013699,2]
[380287052,1755634238495,-9210.68,0.00013699,2]
[380287054,1755634238504,-1000.0,0.00013699,2]
[380287056,1755634238513,-273336.47,0.00013699,2]
[380287058,1755634238522,-15826.4,0.00013699,2]
[380287061,1755634238534,-703.88,0.00013699,2]
[380287063,1755634238543,-14909.95,0.00013699,2]
[380287065,1755634238552,-383.82,0.00013699,2]
[380287067,1755634238561,-200.0,0.00013699,2]
[380287069,1755634238570,-536.73124241,0.00013699,2]
[380287071,1755634238579,-805.09686362,0.00013699,7]
[380287073,1755634238588,-200.0,0.00013699,2]
[380287075,1755634238598,-151.0,0.00013699,2]
[380287077,1755634238607,-151.0,0.00013699,2]
[380287079,1755634238617,-151.0,0.00013699,2]
[380287081,1755634238626,-151.0,0.00013699,2]
[380287083,1755634238636,-1219.0,0.00013699,2]
[380287085,1755634238646,-635.09971842,0.00013699,2]
[380287087,1755634238655,-602.95034402,0.00013699,2]
[380287089,1755634238667,-1302.24014,0.00013699,2]
[380287091,1755634238677,-500.0,0.00013699,2]
[380287094,1755634238691,-500.0,0.000137,2]
[380287096,1755634238701,-500.0,0.000137,2]
[380287098,1755634238711,-500.0,0.000137,2]
[380287100,1755634238720,-500.0,0.000137,2]
[380287102,1755634238730,-500.0,0.000137,2]
[380287104,1755634238743,-500.0,0.000137,2]
[380287106,1755634238753,-500.0,0.000137,2]
[380287108,1755634238762,-500.0,0.000137,2]
[380287110,1755634238773,-500.0,0.000137,2]
[380287112,1755634238785,-500.0,0.000137,2]
[380287114,1755634238795,-500.0,0.000137,2]
[380287116,1755634238805,-500.0,0.000137,2]
[380287118,1755634238815,-500.0,0.000137,2]
[380287120,1755634238825,-500.0,0.000137,2]
[380287122,1755634238835,-500.0,0.000137,2]
[380287124,1755634238845,-500.0,0.000137,2]
[380287126,1755634238854,-500.0,0.000137,2]
[380287128,1755634238863,-500.0,0.000137,2]
[380287130,1755634238873,-500.0,0.000137,2]
[380287132,1755634238882,-500.0,0.000137,2]
[380287134,1755634238892,-500.0,0.000137,2]
[380287136,1755634238902,-500.0,0.000137,2]
[380287139,1755634238912,-500.0,0.000137,2]
[380287141,1755634238922,-500.0,0.000137,2]
[380287143,1755634238932,-500.0,0.000137,2]
[380287145,1755634238941,-500.0,0.000137,2]
[380287147,1755634238951,-500.0,0.000137,2]
[380287149,1755634238960,-500.0,0.000137,2]
[380287151,1755634238969,-500.0,0.000137,2]
[380287153,1755634238979,-500.0,0.000137,2]
[380287155,1755634238989,-500.0,0.000137,2]
[380287157,1755634238998,-500.0,0.000137,2]
[380287159,1755634239008,-500.0,0.000137,2]
[380287161,1755634239017,-500.0,0.000137,2]
[380287163,1755634239027,-500.0,0.000137,2]
[380287165,1755634239039,-500.0,0.000137,2]
[380287167,1755634239048,-500.0,0.000137,2]
[380287170,1755634239058,-500.0,0.000137,2]
[380287172,1755634239067,-500.0,0.000137,2]
[380287174,1755634239078,-500.0,0.000137,2]
[380287176,1755634239087,-500.0,0.000137,2]
[380287178,1755634239096,-697.0,0.000137,2]
[380287180,1755634239106,-4312.39,0.000137,2]
[380287182,1755634239115,-4312.39,0.000137,2]
[380287184,1755634239124,-4312.39,0.000137,2]
[380287186,1755634239135,-4312.39,0.000137,2]
[380287188,1755634239144,-4312.39,0.000137,2]
[380287190,1755634239154,-2500.0,0.000137,3]
[380287192,1755634239164,-2500.0,0.00013709,3]
[380287194,1755634239174,-2500.0,0.00013718,3]
[380287196,1755634239184,-2500.0,0.00013727,3]
[380287198,1755634239193,-2500.0,0.00013735,3]
[380287200,1755634239203,-2500.0,0.00013744,3]
[380287202,1755634239212,-2500.0,0.00013753,3]
[380287204,1755634239222,-2500.0,0.00013762,3]
[380287206,1755634239232,-2500.0,0.00013771,3]
[380287208,1755634239242,-151.0,0.00013773,2]
[380287210,1755634239252,-2500.0,0.00013779,3]
[380287212,1755634239262,-151.0,0.00013783,2]
[380287214,1755634239272,-2500.0,0.00013788,3]
[380287216,1755634239282,-151.0,0.00013796,2]
[380287218,1755634239291,-2500.0,0.00013797,3]
[380287220,1755634239301,-151.0,0.00013803,2]
[380287222,1755634239311,-2500.0,0.00013806,3]
[380287224,1755634239320,-500.0,0.00013808,2]
[380287227,1755634239330,-151.0,0.00013814,2]
[380287228,1755634239339,-2500.0,0.00013815,3]
[380287231,1755634239349,-2500.0,0.00013823,3]
[380287233,1755634239358,-151.0,0.00013826,2]
[380287235,1755634239368,-2500.0,0.00013832,3]
[380287237,1755634239378,-1638.0,0.00013833,2]
[380287239,1755634239388,-200.0,0.00013836,2]
[380287241,1755634239398,-2500.0,0.00013841,3]
[380287243,1755634239408,-2500.0,0.0001385,3]
[380287245,1755634239418,-2500.0,0.00013859,3]
[380287247,1755634239429,-2500.0,0.00013867,3]
[380287250,1755634239440,-2500.0,0.00013876,3]
[380287252,1755634239449,-380.08730645,0.00013881,2]
[380287254,1755634239458,-849.0,0.00013881,2]
[380287256,1755634239468,-555.0,0.00013881,2]
[380287258,1755634239478,-300.0,0.00013881,2]
[380287260,1755634239487,-500.0,0.00013881,2]
[380287262,1755634239500,-2500.0,0.00013885,3]
[380287264,1755634239511,-2500.0,0.00013894,3]
[380287266,1755634239520,-425.41053539,0.000139,2]
[380287268,1755634239530,-2500.0,0.00013903,3]
[380287270,1755634239541,-2500.0,0.00013911,3]
[380287272,1755634239550,-2467.46635801,0.0001397,3]
[380287274,1755634239560,-9941.0,0.00014,2]
[380287276,1755634239569,-1000.0,0.00014,2]
[380287278,1755634239579,-5800.0,0.00014,2]
[380287280,1755634239589,-1355.0,0.00014,2]
[380287282,1755634239604,-200.0,0.00014,2]
[380287284,1755634239614,-1226.9138358,0.00014056,2]
[380287286,1755634239624,-5800.0,0.00014065,2]
[380287289,1755634239633,-5800.0,0.00014074,2]
[380287291,1755634239643,-5800.0,0.00014082,2]
[380287293,1755634239652,-5800.0,0.00014088,2]
[380287295,1755634239662,-5800.0,0.00014091,2]
[380287297,1755634239671,-5800.0,0.00014096,2]
[380287299,1755634239680,-5800.0,0.00014099,2]
[380287301,1755634239690,-15443.66,0.000141,2]
[380287303,1755634239699,-5800.0,0.00014105,2]
[380287305,1755634239708,-5800.0,0.00014108,2]
[380287307,1755634239718,-5800.0,0.00014113,2]
[380287309,1755634239728,-5800.0,0.00014116,2]
[380287311,1755634239742,-5800.0,0.00014116,2]
[380287313,1755634239752,-849.0,0.00014155,2]
[380287315,1755634239761,-555.0,0.00014155,2]
[380287317,1755634239771,-300.0,0.00014155,2]
[380287319,1755634239784,-500.0,0.00014155,2]
[380287321,1755634239793,-3039.8325,0.000142,2]
[380287322,1755634239802,-3039.8325,0.000142,2]
[380287323,1755634239812,-3039.8325,0.000142,2]
[380287324,1755634239822,-3039.8325,0.000142,2]
[380287325,1755634239832,-3039.8325,0.000142,2]
[380287326,1755634239841,-3039.8325,0.000142,2]
[380287327,1755634239851,-273.7614806,0.00014208,2]
[380287328,1755634239860,-1468.30536046,0.0001421,7]
[380287329,1755634239869,-150.0,0.00014258,2]
[380287330,1755634239879,-322.6107,0.00014259,2]
[380287331,1755634239888,-160.0,0.00014259,2]
[380287332,1755634239897,-6090.0,0.0001429,2]
[380287333,1755634239907,-4152.0,0.0001429,2]
[380287335,1755634239916,-590.29,0.0001429,2]
[380287337,1755634239926,-21497.0,0.0001429,2]
[380287339,1755634239936,-2759.82853902,0.000143,2]
[380287341,1755634239947,-88277.27026998,0.00014304,2]
[380287343,1755634239956,-1000.0,0.00014356,2]
[380287345,1755634239966,-283.44,0.00014373,2]
[380287347,1755634239975,-1323.94932059,0.00014384,2]
[380287349,1755634239984,-9210.68,0.00014384,2]
[380287351,1755634239994,-10112.45275727,0.0001439,2]
[380287353,1755634240003,-223358.68891342,0.000144,2]
[380287356,1755634240017,-640641.31108658,0.000144,2]
[380287358,1755634240026,-171507.26177064,0.000144,2]
[380287360,1755634240037,-849.0,0.00014429,2]
[380287362,1755634240046,-555.0,0.00014429,2]
[380287364,1755634240056,-300.0,0.00014429,2]
[380287366,1755634240065,-346.15428325,0.00014429,2]
[380287368,1755634240074,-10000.0,0.00014463,7]
[380287370,1755634240084,-3039.8325,0.000145,2]
[380287372,1755634240093,-3039.8325,0.000145,2]
[380287374,1755634240102,-3039.8325,0.000145,2]
[380287376,1755634240111,-3039.8325,0.000145,2]
[380287378,1755634240120,-3039.8325,0.000145,2]
[380287380,1755634240130,-253.0,0.0001452,2]
[380287382,1755634240139,-1255.0,0.00014528,2]
[380287384,1755634240148,-904.0,0.00014528,2]
[380287386,1755634240157,-2029.0,0.00014528,2]
[380287388,1755634240167,-3371.0,0.00014528,2]
[380287390,1755634240176,-1297.0,0.00014528,2]
[380287392,1755634240185,-566.0,0.00014528,2]
[380287394,1755634240195,-1656.0,0.00014528,2]
[380287396,1755634240204,-599.0,0.00014528,2]
[380287398,1755634240214,-4000.0,0.00014534,3]
[380287400,1755634240223,-76940.97510511,0.0001457,2]
[380287402,1755634240232,-101820.52875442,0.000146,2]
[380287555,1755634241680,-1042.45575235,0.000146,2]
[380287558,1755634241699,-643.7820915,0.000146,2]
[380287560,1755634241710,-78868.98440181,0.000146,2]
[380287562,1755634241719,-309.29654756,0.00014632,2]
[380287564,1755634241728,-238.35,0.00014659,2]
[380287565,1755634241743,-600.0,0.0001467,2]
[380287567,1755634241752,-11583.1424,0.000147,2]
[380287569,1755634241762,-849.0,0.00014703,2]
[380287571,1755634241771,-555.0,0.00014703,2]
[380287573,1755634241782,-300.0,0.00014703,2]
[380287574,1755634241791,-4999.999999,0.00014748,2]
[380287576,1755634241801,-1000.0,0.0001475,2]
[380287578,1755634241810,-1155.0,0.0001477,20]
[380287580,1755634241824,-3039.8325,0.000148,2]
[380287582,1755634241834,-3039.8325,0.000148,2]
[380287584,1755634241843,-3039.8325,0.000148,2]
[380287585,1755634241853,-3039.8325,0.000148,2]
[380287587,1755634241863,-3039.8325,0.000148,2]
[380287589,1755634241874,-200.0,0.00014807,2]
[380287591,1755634241884,-158.87603828,0.0001484,2]
[380287593,1755634241895,-220.67488676,0.00014878,5]
[380287595,1755634241905,-565.61410074,0.000149,2]
[380287597,1755634241915,-1252.0,0.000149,2]
[380287599,1755634241924,-12420.64216712,0.000149,2]
[380287601,1755634241934,-1536.17555505,0.00014904,2]
[380287602,1755634241943,-1152.0,0.00014939,2]
[380287604,1755634241952,-400.0,0.0001497,2]
[380287606,1755634241961,-500.0,0.00014973,2]
[380287608,1755634241971,-500.0,0.00014973,2]
[380287610,1755634241980,-500.0,0.00014973,2]
[380287611,1755634241989,-500.0,0.00014973,2]
[380287613,1755634241999,-500.0,0.00014973,2]
[380287615,1755634242008,-500.0,0.00014973,2]
[380287617,1755634242017,-403.55512251,0.00014973,2]
[380287619,1755634242026,-849.0,0.00014977,2]
[380287621,1755634242037,-555.0,0.00014977,2]
[380287623,1755634242046,-300.0,0.00014977,2]
[380287625,1755634242057,-1057.11399152,0.00015,7]
[380287627,1755634242066,-500.75490201,0.00015,2]
[380287628,1755634242076,-2007.83555449,0.00015,2]
[380287630,1755634242085,-155083.6516332,0.00015,7]
[380287632,1755634242094,-4613.72140636,0.00015,2]
[380287634,1755634242104,-11330.10945732,0.00015,7]
[380287636,1755634242114,-4197.27630577,0.00015,7]
[380287638,1755634242123,-1055.657286,0.00015,2]
[380287640,1755634242133,-7815.91396093,0.00015,2]
[380287642,1755634242142,-18584.38283148,0.00015,2]
[380287644,1755634242151,-145664.86476022,0.00015,7]
[380287646,1755634242163,-439.3771268,0.00015,7]
[380287650,1755634242195,-1141.63454535,0.00015,7]
[380287738,1755634244042,-154.0,0.00013699,2]
[380287739,1755634244052,-22850.22568927,0.00015,7]
[380287740,1755634244061,-2900.0,0.00015,2]
[380287741,1755634244071,-5049.10796727,0.00015,7]
[380287742,1755634244080,-5101.34939683,0.00015,2]
[380287743,1755634244090,-150.0,0.00015,3]
[380287744,1755634244099,-1000.0,0.00015,2]
[380287745,1755634244108,-23330.09663141,0.00015,7]
[380287746,1755634244120,-423.47201165,0.00015,7]
[380287747,1755634244139,-915.6857705,0.00015,7]
[380287748,1755634244150,-1339.53951054,0.00015,7]
[380287749,1755634244169,-305.64476093,0.00015,7]
[380287750,1755634244196,-3527.39032816,0.00015,7]
[380287751,1755634244208,-2650.67244535,0.00015,7]
[380287752,1755634244323,-827.47621151,0.00015,7]
[380287755,1755634244347,-28800.0002,0.00015,7]
[380287766,1755634246337,-154.0,0.00013699,2]
[380287767,1755634246348,-151.0,0.0001377,2]
[380287768,1755634246357,-25979.99740736,0.00015,7]
[380287769,1755634246367,-3973.32809249,0.00015,10]
[380287770,1755634246377,-5016.2673631,0.00015,2]
[380287771,1755634246386,-500.00439616,0.00015,2]
[380287772,1755634246395,-270000.0,0.00015,2]
[380287773,1755634246404,-3039.8325,0.00015,2]
[380287774,1755634246414,-3039.8325,0.00015,2]
[380287775,1755634246423,-3039.8325,0.00015,2]
[380287776,1755634246433,-3039.8325,0.00015,2]
[380287777,1755634246442,-159.0,0.00015,2]
[380287778,1755634246451,-300.0,0.00015,2]
[380287779,1755634246460,-414.10151858,0.00015,2]
[380287780,1755634246469,-253248.85258057,0.00015,2]
[380287781,1755634246549,-3211.03503088,0.00015,2]
[380287782,1755634246561,-1228.23238855,0.00015,2]
[380287783,1755634246571,-250.0,0.00015,2]
[380287784,1755634246580,-2289.61761145,0.00015024,2]
[380287785,1755634246607,-1218.0756968,0.00015024,2]
[380287786,1755634246618,-1371.4244751,0.00015024,2]
[380287787,1755634246726,-11190.42235644,0.00015024,2]
[380287788,1755634246743,-784.79731246,0.00015024,2]
[380287789,1755634246754,-8879.52825614,0.00015024,2]
[380287790,1755634246766,-3786.99999997,0.00015024,2]
[380288022,1755635431781,-155.55918724,0.0001,2]
[380288024,1755635431792,-2482.27066956,0.000108,2]
[380288025,1755635431801,-1051.419361,0.00010844,2]
[380288027,1755635431810,-300.0,0.00010899,2]
[380288029,1755635431819,-963.0,0.00010899,2]
[380288030,1755635431828,-804.8042029,0.000109,2]
[380288031,1755635431838,-333.466992,0.000109,2]
[380288032,1755635431847,-11037.2412724,0.000109,2]
[380288033,1755635431857,-449.84507977,0.00010923,2]
[380288034,1755635431868,-449.84507977,0.00010936,2]
[380288035,1755635431877,-449.84507977,0.00010955,2]
[380288036,1755635431886,-1722.0,0.00010959,2]
[380288037,1755635431896,-449.84507977,0.00010971,2]
[380288038,1755635431908,-449.84507977,0.00010981,2]
[380288039,1755635431929,-449.84507977,0.00010996,2]
[380288040,1755635431939,-449.84507977,0.00010999,2]
[380288041,1755635431949,-197.46687664,0.00010999,2]
[380288042,1755635431958,-150.0,0.00010999,2]
[380288043,1755635431967,-20953.93294669,0.00011,2]
[380288044,1755635431976,-73766.34279122,0.00011,2]
[380288045,1755635431988,-4834.21483305,0.00011,2]
[380288064,1755635432493,-2086.52821001,0.00011,2]
[380288065,1755635432644,-592.0,0.00011,2]
[380288182,1755635439135,-21376.25463766,0.00011,2]
[380288188,1755635439182,-2535.47495634,0.00011,2]
[380288190,1755635439193,-220818.67643824,0.00011,2]
[380288192,1755635439202,-10476.96647335,0.00011,2]
[380288194,1755635439212,-8091395.19353514,0.00011,2]
[380288198,1755635439243,-4336.9228963,0.00011,2]
[380288200,1755635439255,-4739.92194036,0.00011,2]
[380288204,1755635439283,-1530.75802599,0.00011,2]
[380288206,1755635439294,-3423.83994,0.00011,2]
[380288209,1755635439306,-281.34384147,0.00011,2]
[380288310,1755635440215,-6587764.05499197,0.00011,2]
[380288313,1755635440226,-55388.80066087,0.00011,2]
[380288319,1755635440279,-8054.82960037,0.00011,2]
[380288321,1755635440291,-1466.43173063,0.00011,2]
[380288324,1755635440303,-12238.12687346,0.00011,2]
[380288327,1755635440327,-3593.65613785,0.00011,2]
[380288330,1755635440339,-566.1,0.00011,2]
[380288602,1755635446111,-1253.85,0.00011,2]
[380288614,1755636190431,-200.0,9.948e-05,2]
[380288615,1755636190454,-171.66,9.966e-05,2]
[380288616,1755636190476,-200.98,9.984e-05,2]
[380288617,1755636190500,-155.0,9.99e-05,2]
[380288618,1755636190524,-300.0,9.99e-05,2]
[380288619,1755636190547,-11072.36,9.991e-05,2]
[380288620,1755636251736,-901.99,9.991e-05,2]
[380288621,1755636251759,-1065.27,0.00010012,2]
[380288622,1755636251783,-175.25486518,0.00010035,2]
[380288623,1755636251805,-2000.0,0.00010036,2]
[380288624,1755636251829,-175.15,0.00010077,2]
[380288625,1755636251852,-150.0,0.000101,2]
[380288626,1755636251875,-512.68,0.00010107,2]
[380288627,1755636251897,-219.0,0.00010233,2]
[380288628,1755636251919,-1979.3,0.00010414,2]
[380288629,1755636251943,-332.0,0.00010717,2]
[380288630,1755636251965,-300.0,0.00010717,2]
[380288631,1755636251987,-1000.0,0.00010718,2]
[380288632,1755636252011,-2007.59,0.00010718,2]
[380288633,1755636252033,-150.0,0.00010889,2]
[380288634,1755636252056,-345.0077333,0.00010889,2]
[380288635,1755636252079,-207.55670018,0.00010889,2]
[380288636,1755636252101,-149653.15931673,0.0001089,2]
[380288637,1755636252123,-6785.352725,0.000109,2]
[380288638,1755636252146,-364.63760178,0.000109,2]
[380288639,1755636252168,-454.66022748,0.000109,2]
[380288640,1755636252190,-771.96005126,0.000109,2]
[380288641,1755636252213,-2742.75760015,0.00010923,2]
[380288642,1755636252236,-2141.64,0.00010928,2]
[380288643,1755636252259,-2742.75760015,0.00010936,2]
[380288644,1755636252282,-2742.75760015,0.00010946,2]
[380288645,1755636252305,-2742.75760015,0.00010946,2]
[380288646,1755636252332,-2742.75760015,0.00010948,2]
[380288647,1755636252355,-277.35679052,0.00010952,2]
[380288648,1755636252378,-14316.64598782,0.00010959,2]
[380288649,1755636268107,-13000.0,0.000108,2]
[380288650,1755636268130,-23961.35401218,0.00010959,2]
[380288651,1755636272088,241.50541331,0.00010958,2]
[380288652,1755636330501,-150.0,9.888e-05,2]
[380288653,1755636330527,-150.0,9.888e-05,2]
[380288654,1755636330551,-150.0,9.888e-05,2]
[380288655,1755636330573,-150.0,9.888e-05,2]
[380288656,1755636330599,-150.0,9.888e-05,2]
[380288657,1755636330623,-150.0,9.888e-05,2]
[380288658,1755636330646,-150.0,9.888e-05,2]
[380288659,1755636330669,-150.0,9.888e-05,2]
[380288660,1755636330693,-150.0,9.888e-05,2]
[380288661,1755636330717,-150.0,9.94e-05,2]
[380288662,1755636330740,-150.0,9.988e-05,2]
[380288663,1755636330764,-150.0,9.992e-05,2]
[380288664,1755636330788,-150.0,0.00010045,2]
[380288665,1755636330813,-150.0,0.00010071,2]
[380288666,1755636330853,-150.0,0.00010071,2]
[380288667,1755636330876,-150.0,0.00010071,2]
[380288668,1755636330900,-150.0,0.00010087,2]
[380288669,1755636330924,-150.0,0.00010097,2]
[380288670,1755636330948,-150.0,0.00010107,2]
[380288671,1755636330971,-150.0,0.00010149,2]
[380288672,1755636330994,-150.0,0.00010162,2]
[380288673,1755636331016,-150.0,0.00010187,2]
[380288674,1755636331041,-6510.51,0.00010193,2]
[380288675,1755636331066,-150.0,0.00010202,2]
[380288676,1755636331088,-241.22,0.00010216,2]
[380288677,1755636331110,-1000.0,0.00010229,2]
[380288678,1755636331133,-917.63,0.00010229,2]
[380288679,1755636331156,-150.0,0.00010254,2]
[380288680,1755636331179,-150.0,0.00010254,2]
[380288681,1755636331203,-150.0,0.00010254,2]
[380288682,1755636331226,-150.0,0.00010254,2]
[380288683,1755636331250,-150.0,0.00010254,2]
[380288684,1755636331272,-150.0,0.00010287,2]
[380288685,1755636331295,-150.0,0.00010306,2]
[380288686,1755636331318,-150.0,0.00010327,2]
[380288687,1755636331344,-150.0,0.00010359,2]
[380288688,1755636331369,-150.0,0.00010387,2]
[380288689,1755636331395,-150.0,0.00010411,2]
[380288690,1755636331422,-150.0,0.00010437,2]
[380288691,1755636331446,-150.0,0.00010437,2]
[380288692,1755636331469,-150.0,0.00010437,2]
[380288693,1755636331491,-150.0,0.00010437,2]
[380288694,1755636331514,-150.0,0.00010437,2]
[380288695,1755636331537,-150.0,0.00010463,2]
[380288696,1755636331560,-150.0,0.00010487,2]
[380288697,1755636331584,-150.0,0.00010515,2]
[380288698,1755636331608,-150.0,0.00010547,2]
[380288699,1755636331632,-150.0,0.00010568,2]
[380288700,1755636331656,-150.0,0.00010587,2]
[380288701,1755636331679,-150.0,0.0001062,2]
[380288702,1755636331706,-150.0,0.0001062,2]
[380288703,1755636332052,-150.0,0.0001062,2]
[380288704,1755636332083,-150.0,0.0001062,2]
[380288705,1755636332107,-150.0,0.0001062,2]
[380288706,1755636332132,-150.0,0.00010672,2]
[380288707,1755636332156,-150.0,0.00010687,2]
[380288708,1755636332180,-150.0,0.00010712,2]
[380288709,1755636332205,-150.0,0.00010725,2]
[380288710,1755636332230,-150.0,0.00010767,2]
[380288711,1755636332254,-150.0,0.00010777,2]
[380288712,1755636332277,-150.0,0.00010787,2]
[380288713,1755636332300,-150.0,0.00010803,2]
[380288714,1755636332323,-150.0,0.00010803,2]
[380288715,1755636332349,-150.0,0.00010803,2]
[380288716,1755636332372,-150.0,0.00010829,2]
[380288717,1755636332395,-150.0,0.00010882,2]
[380288718,1755636332418,-150.0,0.00010886,2]
[380288719,1755636332439,-303.10681832,0.000109,2]
[380288720,1755636332463,-150.0,0.00010934,2]
[380288721,1755636332486,-169.05378931,0.00010958,2]
[380288722,1755636332508,-150.0,0.00010972,2]
[380288723,1755636332531,-500.0,0.00010973,2]
[380288724,1755636332553,-598.00472714,0.00010973,2]
[380288725,1755636332576,-500.0,0.00010973,2]
[380288726,1755636332598,-500.0,0.00010973,2]
[380288727,1755636332622,-500.0,0.00010973,2]
[380288728,1755636332644,-164.80787018,0.00010973,2]
[380288729,1755636332666,-500.0,0.00010973,2]
[380288730,1755636332695,-500.0,0.00010973,2]
[380288731,1755636332718,-500.0,0.00010973,2]
[380288732,1755636332743,-500.0,0.00010973,2]
[380288733,1755636332767,-300.34645665,0.00010973,2]
[380288734,1755636332791,-500.0,0.00010973,2]
[380288735,1755636332814,-175.61554568,0.00010973,2]
[380288736,1755636332838,-211.85566322,0.00010986,2]
[380288737,1755636332863,-161.23864696,0.00010986,2]
[380288738,1755636332891,-150.0,0.00010986,2]
[380288739,1755636332918,-169.48435064,0.00010986,2]
[380288740,1755636332943,-150.0,0.00010986,2]
[380288741,1755636332969,-150.0,0.00010986,2]
[380288742,1755636332994,-150.0,0.00010986,2]
[380288743,1755636333020,-150.0,0.00010986,2]
[380288744,1755636333045,-205.79632857,0.00010986,2]
[380288745,1755636333071,-744.21780819,0.0001099,2]
[380288746,1755636333096,-744.21780819,0.0001099,2]
[380288747,1755636333122,-744.21780819,0.0001099,2]
[380288748,1755636333149,-1649.47,0.00010993,2]
[380288749,1755636333177,-9190.67,0.00010993,2]
[380288750,1755636333206,-719.83,0.00010993,2]
[380288751,1755636333233,-300.0,0.00010993,2]
[380288752,1755636333257,-200.0,0.00010993,2]
[380288753,1755636333282,-151.0,0.00010993,2]
[380288754,1755636333308,-160.0,0.00010993,2]
[380288755,1755636333333,-500.0,0.00010993,2]
[380288756,1755636333363,-500.0,0.00010993,2]
[380288757,1755636333389,-500.0,0.00010993,2]
[380288758,1755636333415,-500.0,0.00010993,2]
[380288759,1755636333442,-500.0,0.00010993,2]
[380288760,1755636333467,-500.0,0.00010993,2]
[380288761,1755636333492,-500.0,0.00010993,2]
[380288762,1755636333519,-500.0,0.00010993,2]
[380288763,1755636333545,-514.84312809,0.00010993,2]
[380288764,1755636333572,-151.0,0.00010993,2]
[380288765,1755636333597,-151.0,0.00010993,2]
[380288766,1755636333625,-151.0,0.00010993,2]
[380288767,1755636333651,-151.0,0.00010993,2]
[380288768,1755636333679,-151.0,0.00010993,2]
[380288769,1755636333706,-151.0,0.00010993,2]
[380288770,1755636333731,-151.0,0.00010993,2]
[380288771,1755636333758,-151.0,0.00010993,2]
[380288772,1755636333783,-151.0,0.00010993,2]
[380288773,1755636333812,-151.0,0.00010993,2]
[380288774,1755636333837,-151.0,0.00010993,2]
[380288775,1755636333877,-2742.75760015,0.00010998,2]